[Event "*** Titled Tuesday Blitz"]
[Site "Chess.com"]
[Date "2018.10.02"]
[Round "2"]
[White "Kirill_Klukin"]
[Black "pKiLz5Rn9b"]
[Result "1/2-1/2"]
[WhiteElo "2606"]
[BlackElo "2801"]
[TimeControl "180+2"]
[EndTime "13:24:02 PDT"]
[Termination "Game drawn by repetition"]

1. Nf3 {[%clk 0:02:59.4]} 1... Nf6 {[%clk 0:03:00.7]} 2. c4 {[%clk 0:03:00.1]}
2... e6 {[%clk 0:03:01.8]} 3. Nc3 {[%clk 0:02:58.5]} 3... d5 {[%clk 0:03:02.9]}
4. d4 {[%clk 0:02:57.8]} 4... dxc4 {[%clk 0:03:03]} 5. e3 {[%clk 0:02:56.6]}
5... a6 {[%clk 0:03:03.7]} 6. Bxc4 {[%clk 0:02:57.5]} 6... b5 {[%clk 0:03:04.5]}
7. Bb3 {[%clk 0:02:55.4]} 7... Bb7 {[%clk 0:03:06.1]} 8. O-O {[%clk 0:02:56.6]}
8... c5 {[%clk 0:03:06.5]} 9. dxc5 {[%clk 0:02:57.8]} 9... Qxd1 {[%clk
0:03:06.9]} 10. Rxd1 {[%clk 0:02:59.7]} 10... Bxc5 {[%clk 0:03:08.1]} 11. a3
{[%clk 0:03:01.2]} 11... Nbd7 {[%clk 0:03:03.9]} 12. Bc2 {[%clk 0:03:01.6]}
12... Ke7 {[%clk 0:03:00.1]} 13. b4 {[%clk 0:03:01.9]} 13... Bd6 {[%clk
0:03:01.5]} 14. Bb2 {[%clk 0:03:02.5]} 14... Rac8 {[%clk 0:03:02.4]} 15. Rac1
{[%clk 0:03:03.3]} 15... Nb6 {[%clk 0:02:59.4]} 16. Nd2 {[%clk 0:02:36.6]} 16...
Rhd8 {[%clk 0:02:17.5]} 17. Nce4 {[%clk 0:01:46.1]} 17... Rxc2 {[%clk
0:01:27.1]} 18. Bxf6+ {[%clk 0:01:37.6]} 18... gxf6 {[%clk 0:01:27.6]} 19. Rxc2
{[%clk 0:01:37.9]} 19... Bxe4 {[%clk 0:01:29.1]} 20. Nxe4 {[%clk 0:01:33.8]}
20... Bxh2+ {[%clk 0:01:30.6]} 21. Kxh2 {[%clk 0:01:35.2]} 21... Rxd1 {[%clk
0:01:32.2]} 22. Rc6 {[%clk 0:01:35.7]} 22... Nc4 {[%clk 0:01:24.6]} 23. Rxa6
{[%clk 0:01:35.4]} 23... f5 {[%clk 0:01:21.3]} 24. Nc3 {[%clk 0:01:23.3]} 24...
Rd2 {[%clk 0:01:18.5]} 25. Kg3 {[%clk 0:01:23.4]} 25... f4+ {[%clk 0:01:16]} 26.
Kxf4 {[%clk 0:01:10.7]} 26... Rxf2+ {[%clk 0:01:16.8]} 27. Kg3 {[%clk 0:01:12]}
27... Rc2 {[%clk 0:00:56.4]} 28. Nxb5 {[%clk 0:01:03.3]} 28... Nxe3 {[%clk
0:00:57.6]} 29. Ra7+ {[%clk 0:01:04.6]} 29... Kf6 {[%clk 0:00:49.1]} 30. Nd6
{[%clk 0:01:05.6]} 30... Nxg2 {[%clk 0:00:25.9]} 31. Rxf7+ {[%clk 0:01:02.1]}
31... Ke5 {[%clk 0:00:26.9]} 32. Nb5 {[%clk 0:00:55.3]} 32... Ne3 {[%clk
0:00:18.1]} 33. Rxh7 {[%clk 0:00:55.3]} 33... Nf5+ {[%clk 0:00:17.6]} 34. Kf3
{[%clk 0:00:53.8]} 34... Rb2 {[%clk 0:00:18.9]} 35. Rc7 {[%clk 0:00:45.9]} 35...
Rb3+ {[%clk 0:00:18.5]} 36. Ke2 {[%clk 0:00:42.8]} 36... Kf4 {[%clk 0:00:06.8]}
37. Rc4+ {[%clk 0:00:42]} 37... Ke5 {[%clk 0:00:07.6]} 38. Rc5+ {[%clk 0:00:43]}
38... Kf4 {[%clk 0:00:08.9]} 39. Kd2 {[%clk 0:00:39.4]} 39... e5 {[%clk
0:00:10.2]} 40. Rc4+ {[%clk 0:00:35.2]} 40... e4 {[%clk 0:00:09.5]} 41. Nc3
{[%clk 0:00:28.9]} 41... Ng3 {[%clk 0:00:08.3]} 42. Kc2 {[%clk 0:00:12.1]} 42...
Rxa3 {[%clk 0:00:09.2]} 43. Kb2 {[%clk 0:00:13.6]} 43... Ra8 {[%clk 0:00:08.4]}
44. b5 {[%clk 0:00:14.8]} 44... Kf3 {[%clk 0:00:07.4]} 45. Rc7 {[%clk
0:00:14.8]} 45... Rb8 {[%clk 0:00:05.8]} 46. Rf7+ {[%clk 0:00:15.7]} 46... Ke3
{[%clk 0:00:05.4]} 47. Kb3 {[%clk 0:00:16.9]} 47... Kd4 {[%clk 0:00:05.9]} 48.
Kb4 {[%clk 0:00:18]} 48... e3 {[%clk 0:00:06.9]} 49. Rd7+ {[%clk 0:00:19.3]}
49... Ke5 {[%clk 0:00:08.3]} 50. Re7+ {[%clk 0:00:20.7]} 50... Kd4 {[%clk
0:00:09.8]} 51. Rd7+ {[%clk 0:00:17.6]} 51... Ke5 {[%clk 0:00:11.4]} 52. Re7+
{[%clk 0:00:19]} 52... Kd4 {[%clk 0:00:09.8]} 53. Rd7+ {[%clk 0:00:20]} 53...
Ke5 {[%clk 0:00:11.3]} 54. Re7+ {[%clk 0:00:21.2]} 1/2-1/2

[Event "*** Titled Tuesday Blitz"]
[Site "Chess.com"]
[Date "2018.10.02"]
[Round "2"]
[White "petrpalachev"]
[Black "Zq1"]
[Result "1/2-1/2"]
[WhiteElo "2754"]
[BlackElo "2581"]
[TimeControl "180+2"]
[EndTime "13:24:10 PDT"]
[Termination "Game drawn by repetition"]

1. d4 {[%clk 0:03:01.9]} 1... Nf6 {[%clk 0:03:00.1]} 2. c4 {[%clk 0:03:03]} 2...
a6 {[%clk 0:03:00.4]} 3. Nc3 {[%clk 0:03:03.1]} 3... c5 {[%clk 0:03:00.8]} 4. d5
{[%clk 0:03:03.4]} 4... b5 {[%clk 0:03:01.4]} 5. cxb5 {[%clk 0:03:03]} 5... axb5
{[%clk 0:03:02.2]} 6. Nxb5 {[%clk 0:03:00.1]} 6... Qa5+ {[%clk 0:03:00]} 7. Nc3
{[%clk 0:03:00.7]} 7... Bb7 {[%clk 0:03:01.3]} 8. Nf3 {[%clk 0:02:54.7]} 8...
Bxd5 {[%clk 0:02:55.6]} 9. Bd2 {[%clk 0:02:55]} 9... Bc6 {[%clk 0:02:51.1]} 10.
Nd5 {[%clk 0:02:53.7]} 10... Qd8 {[%clk 0:02:47.1]} 11. Nxf6+ {[%clk 0:02:54.5]}
11... gxf6 {[%clk 0:02:47]} 12. e3 {[%clk 0:02:39.3]} 12... Bg7 {[%clk
0:02:44.8]} 13. Qc2 {[%clk 0:02:35.3]} 13... d6 {[%clk 0:02:44]} 14. Bd3 {[%clk
0:02:34.8]} 14... h5 {[%clk 0:02:42.5]} 15. e4 {[%clk 0:02:28.2]} 15... Nd7
{[%clk 0:02:41.7]} 16. O-O {[%clk 0:02:28]} 16... h4 {[%clk 0:02:42]} 17. h3
{[%clk 0:02:28.6]} 17... Ne5 {[%clk 0:02:37.1]} 18. Nxe5 {[%clk 0:02:28.7]}
18... fxe5 {[%clk 0:02:36]} 19. b4 {[%clk 0:02:29.4]} 19... Kf8 {[%clk
0:02:22.5]} 20. bxc5 {[%clk 0:02:29.2]} 20... dxc5 {[%clk 0:02:22.9]} 21. Be3
{[%clk 0:02:27.1]} 21... Rc8 {[%clk 0:02:18]} 22. a4 {[%clk 0:02:26.7]} 22...
Ba8 {[%clk 0:02:15]} 23. Bc4 {[%clk 0:02:25.6]} 23... Bh6 {[%clk 0:02:10.9]} 24.
Rfd1 {[%clk 0:02:23.9]} 24... Qb6 {[%clk 0:02:08]} 25. Rab1 {[%clk 0:02:15.5]}
25... Qg6 {[%clk 0:02:06.9]} 26. Bxh6+ {[%clk 0:02:05.2]} 26... Rxh6 {[%clk
0:01:50.3]} 27. f3 {[%clk 0:02:00.4]} 27... Qg5 {[%clk 0:01:47.4]} 28. Qd2
{[%clk 0:01:59.5]} 28... Qf6 {[%clk 0:01:24.9]} 29. a5 {[%clk 0:01:52]} 29...
Rg6 {[%clk 0:01:20.4]} 30. Rb6 {[%clk 0:01:49.1]} 30... Bc6 {[%clk 0:01:12.8]}
31. Bb5 {[%clk 0:01:29.6]} 31... Qxf3 {[%clk 0:00:58.7]} 32. Rxc6 {[%clk
0:01:15.6]} 32... Rcxc6 {[%clk 0:00:51.5]} 33. Bxc6 {[%clk 0:01:15.7]} 33...
Rxg2+ {[%clk 0:00:51.2]} 34. Qxg2 {[%clk 0:01:15.6]} 34... Qxd1+ {[%clk
0:00:51.6]} 35. Qf1 {[%clk 0:01:06.1]} 35... Qd4+ {[%clk 0:00:52.1]} 36. Kh1
{[%clk 0:01:00.6]} 36... c4 {[%clk 0:00:51.1]} 37. Bd5 {[%clk 0:01:01.4]} 37...
e6 {[%clk 0:00:49.9]} 38. Bxc4 {[%clk 0:00:31.6]} 38... Qxe4+ {[%clk 0:00:49.8]}
39. Kg1 {[%clk 0:00:33]} 39... Qd4+ {[%clk 0:00:48.5]} 40. Kh2 {[%clk
0:00:22.5]} 40... Qd2+ {[%clk 0:00:43.1]} 41. Kh1 {[%clk 0:00:19.6]} 41... Qxa5
{[%clk 0:00:43.2]} 42. Bxe6 {[%clk 0:00:20.5]} 42... Qc7 {[%clk 0:00:40]} 43.
Bd5 {[%clk 0:00:19.8]} 43... Qd7 {[%clk 0:00:40.2]} 44. Qf3 {[%clk 0:00:19.8]}
44... f5 {[%clk 0:00:39.8]} 45. Kg2 {[%clk 0:00:17.8]} 45... Ke7 {[%clk
0:00:39.2]} 46. Qa3+ {[%clk 0:00:17.4]} 46... Qd6 {[%clk 0:00:35.7]} 47. Qa7+
{[%clk 0:00:17.9]} 47... Qd7 {[%clk 0:00:35.5]} 48. Qc5+ {[%clk 0:00:18.9]}
48... Qd6 {[%clk 0:00:36.1]} 49. Qa7+ {[%clk 0:00:14]} 49... Kf6 {[%clk
0:00:30.3]} 50. Qf7+ {[%clk 0:00:14.1]} 50... Kg5 {[%clk 0:00:31.3]} 51. Qg7+
{[%clk 0:00:10.6]} 51... Kf4 {[%clk 0:00:32.1]} 52. Qb7 {[%clk 0:00:04.8]} 52...
Qg6+ {[%clk 0:00:30.6]} 53. Kf1 {[%clk 0:00:05.1]} 53... Qg3 {[%clk 0:00:26.8]}
54. Qb4+ {[%clk 0:00:05.7]} 54... Kg5 {[%clk 0:00:25.6]} 55. Qe7+ {[%clk
0:00:06.2]} 55... Kf4 {[%clk 0:00:26.7]} 56. Qb4+ {[%clk 0:00:07.1]} 56... Kg5
{[%clk 0:00:20]} 57. Qe7+ {[%clk 0:00:07.7]} 57... Kf4 {[%clk 0:00:19.3]} 58.
Qb4+ {[%clk 0:00:08.5]} 1/2-1/2

[Event "*** Titled Tuesday Blitz"]
[Site "Chess.com"]
[Date "2018.10.02"]
[Round "2"]
[White "bascheyaro"]
[Black "ChristopherYoo"]
[Result "1-0"]
[WhiteElo "2693"]
[BlackElo "2337"]
[TimeControl "180+2"]
[EndTime "13:24:19 PDT"]
[Termination "bascheyaro won on time"]

1. d4 {[%clk 0:03:01.9]} 1... Nf6 {[%clk 0:03:00.5]} 2. Nf3 {[%clk 0:03:03]}
2... g6 {[%clk 0:03:01.3]} 3. c4 {[%clk 0:03:04]} 3... Bg7 {[%clk 0:03:02.3]} 4.
Nc3 {[%clk 0:03:05.4]} 4... Kf8 {[%clk 0:03:03.5]} 5. e4 {[%clk 0:03:06.5]} 5...
d6 {[%clk 0:03:03.2]} 6. Bd3 {[%clk 0:03:06.6]} 6... e5 {[%clk 0:03:02.1]} 7.
dxe5 {[%clk 0:03:06.6]} 7... dxe5 {[%clk 0:03:01.8]} 8. Nxe5 {[%clk 0:03:08]}
8... Nxe4 {[%clk 0:02:32.9]} 9. Nxg6+ {[%clk 0:02:32.5]} 9... hxg6 {[%clk
0:02:32.2]} 10. Nxe4 {[%clk 0:02:34.4]} 10... Bf5 {[%clk 0:01:57.3]} 11. Be3
{[%clk 0:02:06.6]} 11... Nc6 {[%clk 0:01:35]} 12. Qb3 {[%clk 0:01:55.2]} 12...
Kg8 {[%clk 0:01:18.9]} 13. O-O-O {[%clk 0:01:55.2]} 13... Nd4 {[%clk 0:00:47.5]}
14. Bxd4 {[%clk 0:01:41.2]} 14... Bxd4 {[%clk 0:00:34.6]} 15. Kb1 {[%clk
0:01:37.8]} 15... a5 {[%clk 0:00:26.8]} 16. Bc2 {[%clk 0:01:32.3]} 16... b6
{[%clk 0:00:21.8]} 17. Qd3 {[%clk 0:01:25.7]} 17... c5 {[%clk 0:00:22.4]} 18.
Qf3 {[%clk 0:01:26.7]} 18... Ra7 {[%clk 0:00:19.9]} 19. g4 {[%clk 0:01:27.3]}
19... Bxe4 {[%clk 0:00:20.9]} 20. Bxe4 {[%clk 0:01:27.7]} 20... Qg5 {[%clk
0:00:21.5]} 21. Bd5 {[%clk 0:01:25.5]} 21... Qf6 {[%clk 0:00:22.5]} 22. Qxf6
{[%clk 0:01:19.1]} 22... Bxf6 {[%clk 0:00:24.4]} 23. f4 {[%clk 0:01:13.4]} 23...
Rh4 {[%clk 0:00:22.7]} 24. Bf3 {[%clk 0:01:06]} 24... Bd4 {[%clk 0:00:22.1]} 25.
Rde1 {[%clk 0:01:06.3]} 25... Kf8 {[%clk 0:00:22.7]} 26. h3 {[%clk 0:00:57.3]}
26... Re7 {[%clk 0:00:17.8]} 27. Bg2 {[%clk 0:00:58.4]} 27... Re3 {[%clk
0:00:16.5]} 28. Rxe3 {[%clk 0:00:59.2]} 28... Bxe3 {[%clk 0:00:17.8]} 29. Rf1
{[%clk 0:01:00.9]} 29... f5 {[%clk 0:00:18.5]} 30. Rf3 {[%clk 0:01:00.9]} 30...
Bg1 {[%clk 0:00:13.6]} 31. gxf5 {[%clk 0:00:44.3]} 31... gxf5 {[%clk 0:00:14.4]}
32. Rb3 {[%clk 0:00:45.6]} 32... Rxf4 {[%clk 0:00:12.4]} 33. Rxb6 {[%clk
0:00:46.6]} 33... Bd4 {[%clk 0:00:08.6]} 34. a3 {[%clk 0:00:47.3]} 34... Rf2
{[%clk 0:00:04.9]} 35. Bd5 {[%clk 0:00:47.9]} 35... a4 {[%clk 0:00:05.2]} 36.
Bc6 {[%clk 0:00:47.7]} 36... f4 {[%clk 0:00:03.1]} 37. Rb8+ {[%clk 0:00:48.2]}
37... Ke7 {[%clk 0:00:02.8]} 38. Bxa4 {[%clk 0:00:48.5]} 38... f3 {[%clk
0:00:03.7]} 39. Ka2 {[%clk 0:00:48.3]} 39... Rxb2+ {[%clk 0:00:02.9]} 40. Rxb2
{[%clk 0:00:49.3]} 40... Bxb2 {[%clk 0:00:04.5]} 41. Bd1 {[%clk 0:00:50.7]}
41... f2 {[%clk 0:00:05.1]} 42. Be2 {[%clk 0:00:52.1]} 42... Bc3 {[%clk
0:00:05.1]} 43. Kb3 {[%clk 0:00:52.8]} 43... Be1 {[%clk 0:00:06]} 44. Ka4 {[%clk
0:00:53.7]} 44... Kd6 {[%clk 0:00:05.6]} 45. Kb5 {[%clk 0:00:55.1]} 45... Bd2
{[%clk 0:00:06.4]} 46. a4 {[%clk 0:00:56.1]} 46... Be3 {[%clk 0:00:06.6]} 47. a5
{[%clk 0:00:57.1]} 47... Kc7 {[%clk 0:00:07.8]} 48. h4 {[%clk 0:00:57.8]} 48...
Kb7 {[%clk 0:00:06.8]} 49. h5 {[%clk 0:00:58.5]} 49... Ka7 {[%clk 0:00:05.3]}
50. a6 {[%clk 0:00:59.5]} 50... Bf4 {[%clk 0:00:02.2]} 51. Bf1 {[%clk
0:00:53.2]} 51... Be3 {[%clk 0:00:02.8]} 52. Bg2 {[%clk 0:00:54.3]} 52... Bf4
{[%clk 0:00:03.6]} 53. Bh3 {[%clk 0:00:50.4]} 53... Be3 {[%clk 0:00:04.3]} 54.
Bf1 {[%clk 0:00:51.6]} 54... Bf4 {[%clk 0:00:04]} 55. Kxc5 {[%clk 0:00:53.1]}
55... Kxa6 {[%clk 0:00:04.8]} 56. Kd5 {[%clk 0:00:54.7]} 56... Kb6 {[%clk
0:00:05.3]} 57. Ke4 {[%clk 0:00:41.8]} 57... Bh6 {[%clk 0:00:05.5]} 58. Kf5
{[%clk 0:00:43.2]} 58... Kc5 {[%clk 0:00:03.5]} 59. Kg6 {[%clk 0:00:44.5]} 59...
Bc1 {[%clk 0:00:04.5]} 60. h6 {[%clk 0:00:45.8]} 60... Bb2 {[%clk 0:00:04.6]}
61. h7 {[%clk 0:00:47.3]} 61... Bh8 {[%clk 0:00:03.1]} 62. Kf7 {[%clk
0:00:49.2]} 1-0

[Event "*** Titled Tuesday Blitz"]
[Site "Chess.com"]
[Date "2018.10.02"]
[Round "2"]
[White "DishonorOnYourCow"]
[Black "Siemba"]
[Result "1-0"]
[WhiteElo "2247"]
[BlackElo "2041"]
[TimeControl "180+2"]
[EndTime "13:24:23 PDT"]
[Termination "DishonorOnYourCow won by checkmate"]

1. d4 {[%clk 0:03:01.9]} 1... Nf6 {[%clk 0:02:53.6]} 2. c4 {[%clk 0:03:00.6]}
2... g6 {[%clk 0:02:51.8]} 3. Nc3 {[%clk 0:03:01.5]} 3... Bg7 {[%clk 0:02:46.2]}
4. e4 {[%clk 0:03:00.9]} 4... d6 {[%clk 0:02:37.7]} 5. f4 {[%clk 0:02:59.2]}
5... c5 {[%clk 0:02:29.4]} 6. d5 {[%clk 0:02:59.2]} 6... O-O {[%clk 0:02:23.2]}
7. Nf3 {[%clk 0:02:58.6]} 7... e6 {[%clk 0:02:20.6]} 8. dxe6 {[%clk 0:02:58.5]}
8... Bxe6 {[%clk 0:02:05.9]} 9. Bd3 {[%clk 0:02:59]} 9... Nc6 {[%clk 0:02:02.2]}
10. O-O {[%clk 0:02:58.5]} 10... Re8 {[%clk 0:01:52.4]} 11. f5 {[%clk
0:02:58.1]} 11... Bd7 {[%clk 0:01:44.9]} 12. Bf4 {[%clk 0:02:57.1]} 12... Ne5
{[%clk 0:01:34.6]} 13. Nxe5 {[%clk 0:02:52.7]} 13... dxe5 {[%clk 0:01:36.5]} 14.
Bg5 {[%clk 0:02:53.2]} 14... gxf5 {[%clk 0:01:22.8]} 15. exf5 {[%clk 0:02:36.9]}
15... h6 {[%clk 0:01:22.8]} 16. Bh4 {[%clk 0:02:36.1]} 16... Bc6 {[%clk
0:00:55.3]} 17. Qc2 {[%clk 0:01:49.6]} 17... e4 {[%clk 0:00:49.4]} 18. Be2
{[%clk 0:01:33]} 18... e3 {[%clk 0:00:42.3]} 19. Rad1 {[%clk 0:01:21.9]} 19...
Qa5 {[%clk 0:00:31.6]} 20. Rd6 {[%clk 0:01:00.9]} 20... Rad8 {[%clk 0:00:25.6]}
21. Rxf6 {[%clk 0:00:44.4]} 21... Bxf6 {[%clk 0:00:26.5]} 22. Bxf6 {[%clk
0:00:44.6]} 22... Rd2 {[%clk 0:00:27.5]} 23. Qc1 {[%clk 0:00:42.4]} 23... Qc7
{[%clk 0:00:19]} 24. Qe1 {[%clk 0:00:38.4]} 24... Kh7 {[%clk 0:00:18.3]} 25. Nd5
{[%clk 0:00:17.2]} 25... Bxd5 {[%clk 0:00:14.4]} 26. cxd5 {[%clk 0:00:18]} 26...
Rg8 {[%clk 0:00:15.4]} 27. Bf3 {[%clk 0:00:17.7]} 27... Qf4 {[%clk 0:00:14]} 28.
Qh4 {[%clk 0:00:14.9]} 28... Qxh4 {[%clk 0:00:07.9]} 29. Bxh4 {[%clk 0:00:15.7]}
29... Rxb2 {[%clk 0:00:08.1]} 30. d6 {[%clk 0:00:15.3]} 30... Rd2 {[%clk
0:00:08.7]} 31. Bg3 {[%clk 0:00:13.4]} 31... f6 {[%clk 0:00:09.7]} 32. Re1
{[%clk 0:00:13.9]} 32... Re8 {[%clk 0:00:09.7]} 33. Bf4 {[%clk 0:00:13.2]} 33...
Rd4 {[%clk 0:00:09.8]} 34. Bxe3 {[%clk 0:00:13.4]} 34... Rxd6 {[%clk 0:00:10.5]}
35. Kf2 {[%clk 0:00:13.2]} 35... Ra6 {[%clk 0:00:10.6]} 36. Re2 {[%clk
0:00:11.4]} 36... c4 {[%clk 0:00:11.1]} 37. Bxb7 {[%clk 0:00:10.9]} 37... Ra3
{[%clk 0:00:12.2]} 38. Bc6 {[%clk 0:00:09.4]} 38... c3 {[%clk 0:00:11.3]} 39.
Bxe8 {[%clk 0:00:08.5]} 39... Ra5 {[%clk 0:00:12]} 40. Rc2 {[%clk 0:00:08.3]}
40... Rxf5+ {[%clk 0:00:13]} 41. Ke2 {[%clk 0:00:08.8]} 41... Re5 {[%clk
0:00:13.5]} 42. Kd3 {[%clk 0:00:10.1]} 42... Rxe8 {[%clk 0:00:14.5]} 43. Rxc3
{[%clk 0:00:11.7]} 43... Re7 {[%clk 0:00:15.6]} 44. Rc5 {[%clk 0:00:12.7]} 44...
Rd7+ {[%clk 0:00:16.7]} 45. Kc4 {[%clk 0:00:12]} 45... Rg7 {[%clk 0:00:18.6]}
46. Ra5 {[%clk 0:00:12.9]} 46... Rxg2 {[%clk 0:00:19.5]} 47. Rxa7+ {[%clk
0:00:14.6]} 47... Kg6 {[%clk 0:00:21]} 48. a4 {[%clk 0:00:12.7]} 48... Rxh2
{[%clk 0:00:21.4]} 49. a5 {[%clk 0:00:14.1]} 49... h5 {[%clk 0:00:19.6]} 50. a6
{[%clk 0:00:14.5]} 50... h4 {[%clk 0:00:18.7]} 51. Ra8 {[%clk 0:00:15.4]} 51...
h3 {[%clk 0:00:18.5]} 52. Rg8+ {[%clk 0:00:13.4]} 52... Kf7 {[%clk 0:00:17.7]}
53. a7 {[%clk 0:00:14.1]} 53... Rc2+ {[%clk 0:00:15.1]} 54. Kd3 {[%clk
0:00:14.4]} 54... Rc6 {[%clk 0:00:08]} 55. a8=Q {[%clk 0:00:13.7]} 55... Rd6+
{[%clk 0:00:09.2]} 56. Ke2 {[%clk 0:00:14]} 56... h2 {[%clk 0:00:09]} 57. Qe8#
{[%clk 0:00:14.5]} 1-0

[Event "*** Titled Tuesday Blitz"]
[Site "Chess.com"]
[Date "2018.10.02"]
[Round "2"]
[White "Thjop"]
[Black "DanielNaroditsky"]
[Result "1-0"]
[WhiteElo "2628"]
[BlackElo "2964"]
[TimeControl "180+2"]
[EndTime "13:24:31 PDT"]
[Termination "Thjop won by resignation"]

1. e4 {[%clk 0:02:59.1]} 1... e5 {[%clk 0:03:01]} 2. Nf3 {[%clk 0:02:59.8]} 2...
Nc6 {[%clk 0:03:02.6]} 3. Nc3 {[%clk 0:02:58.9]} 3... Nf6 {[%clk 0:03:03.4]} 4.
Bb5 {[%clk 0:03:00]} 4... Nd4 {[%clk 0:03:04]} 5. Ba4 {[%clk 0:03:00.2]} 5...
Bc5 {[%clk 0:03:01.5]} 6. O-O {[%clk 0:02:49.3]} 6... O-O {[%clk 0:03:00.5]} 7.
d3 {[%clk 0:02:43.8]} 7... d6 {[%clk 0:02:50.6]} 8. h3 {[%clk 0:02:44]} 8... c6
{[%clk 0:02:44.7]} 9. Nxd4 {[%clk 0:02:31.4]} 9... Bxd4 {[%clk 0:02:46.6]} 10.
Ne2 {[%clk 0:02:29.3]} 10... Bb6 {[%clk 0:02:44.2]} 11. Ng3 {[%clk 0:02:29.8]}
11... d5 {[%clk 0:02:40.9]} 12. Qf3 {[%clk 0:02:21.6]} 12... Be6 {[%clk
0:02:20.7]} 13. Bb3 {[%clk 0:02:10.4]} 13... Ne8 {[%clk 0:02:01.2]} 14. Nf5
{[%clk 0:02:03.5]} 14... Qf6 {[%clk 0:01:50.3]} 15. Bd2 {[%clk 0:01:52.9]} 15...
Bxf5 {[%clk 0:01:49.5]} 16. Qxf5 {[%clk 0:01:48.1]} 16... Qxf5 {[%clk
0:01:50.4]} 17. exf5 {[%clk 0:01:49.9]} 17... Nd6 {[%clk 0:01:52.2]} 18. g4
{[%clk 0:01:45]} 18... Rfe8 {[%clk 0:01:49.6]} 19. Kg2 {[%clk 0:01:39.8]} 19...
e4 {[%clk 0:01:31]} 20. Bf4 {[%clk 0:01:37.1]} 20... Nb5 {[%clk 0:01:32.3]} 21.
dxe4 {[%clk 0:01:34.8]} 21... Rxe4 {[%clk 0:01:34.2]} 22. Bg3 {[%clk 0:01:29.8]}
22... Nd4 {[%clk 0:01:33.4]} 23. Rae1 {[%clk 0:01:22.2]} 23... Rae8 {[%clk
0:01:33.3]} 24. f3 {[%clk 0:01:02.5]} 24... Re2+ {[%clk 0:01:30.7]} 25. Rxe2
{[%clk 0:01:02.8]} 25... Rxe2+ {[%clk 0:01:32.6]} 26. Rf2 {[%clk 0:01:04]} 26...
Re8 {[%clk 0:01:12]} 27. Rd2 {[%clk 0:00:52.1]} 27... Nxb3 {[%clk 0:01:11.5]}
28. axb3 {[%clk 0:00:51.5]} 28... f6 {[%clk 0:01:10.1]} 29. Bf2 {[%clk
0:00:49.1]} 29... Bxf2 {[%clk 0:01:00.1]} 30. Kxf2 {[%clk 0:00:51]} 30... Kf7
{[%clk 0:01:01.7]} 31. Rd1 {[%clk 0:00:50.2]} 31... Ke7 {[%clk 0:00:59]} 32. Ra1
{[%clk 0:00:44.5]} 32... a6 {[%clk 0:00:59.2]} 33. b4 {[%clk 0:00:45.7]} 33...
Kd6 {[%clk 0:00:59.2]} 34. h4 {[%clk 0:00:46.6]} 34... Re5 {[%clk 0:00:54.1]}
35. c3 {[%clk 0:00:45.3]} 35... Kc7 {[%clk 0:00:51.8]} 36. Rd1 {[%clk
0:00:37.1]} 36... Kb6 {[%clk 0:00:50.2]} 37. Rd2 {[%clk 0:00:37.8]} 37... a5
{[%clk 0:00:50.3]} 38. bxa5+ {[%clk 0:00:38.2]} 38... Kxa5 {[%clk 0:00:52.2]}
39. Kg3 {[%clk 0:00:38.3]} 39... Kb5 {[%clk 0:00:44.8]} 40. Kf4 {[%clk 0:00:38]}
40... Kc5 {[%clk 0:00:43.8]} 41. g5 {[%clk 0:00:38.5]} 41... Kd6 {[%clk
0:00:44.8]} 42. Rg2 {[%clk 0:00:37.5]} 42... Re7 {[%clk 0:00:43]} 43. gxf6
{[%clk 0:00:36.2]} 43... gxf6 {[%clk 0:00:44.9]} 44. Rg8 {[%clk 0:00:37.3]}
44... Rf7 {[%clk 0:00:41.9]} 45. h5 {[%clk 0:00:36.7]} 45... c5 {[%clk
0:00:40.9]} 46. h6 {[%clk 0:00:37.1]} 46... b6 {[%clk 0:00:28.9]} 47. Rb8 {[%clk
0:00:26.5]} 47... Kc6 {[%clk 0:00:27.5]} 48. Rg8 {[%clk 0:00:26.5]} 48... Kd6
{[%clk 0:00:28.8]} 49. Rb8 {[%clk 0:00:27.1]} 49... Kc6 {[%clk 0:00:29.1]} 50.
Rg8 {[%clk 0:00:27.8]} 50... b5 {[%clk 0:00:18.5]} 51. Rg7 {[%clk 0:00:26.8]}
51... Rd7 {[%clk 0:00:19.9]} 52. Ke3 {[%clk 0:00:20.9]} 52... Kd6 {[%clk
0:00:16.7]} 53. f4 {[%clk 0:00:21.3]} 53... Re7+ {[%clk 0:00:16.7]} 54. Kd3
{[%clk 0:00:21.5]} 54... c4+ {[%clk 0:00:16.7]} 55. Kd2 {[%clk 0:00:21.2]} 55...
Re4 {[%clk 0:00:17.8]} 56. Rxh7 {[%clk 0:00:21.7]} 56... Rxf4 {[%clk 0:00:19.3]}
57. Rh8 {[%clk 0:00:22.5]} 57... Rf2+ {[%clk 0:00:10.3]} 58. Ke3 {[%clk
0:00:17.3]} 58... Rxf5 {[%clk 0:00:09.2]} 59. h7 {[%clk 0:00:17.5]} 59... Re5+
{[%clk 0:00:09.5]} 60. Kf4 {[%clk 0:00:15.1]} 60... Re4+ {[%clk 0:00:10.7]} 61.
Kf3 {[%clk 0:00:16.2]} 61... Rh4 {[%clk 0:00:09.4]} 62. Rd8+ {[%clk 0:00:16.4]}
62... Ke5 {[%clk 0:00:09.5]} 63. h8=Q {[%clk 0:00:16.4]} 63... Rxh8 {[%clk
0:00:11.4]} 64. Rxh8 {[%clk 0:00:17.4]} 64... Kd6 {[%clk 0:00:13.3]} 65. Ke3
{[%clk 0:00:18]} 65... Kc5 {[%clk 0:00:14.3]} 66. Rc8+ {[%clk 0:00:18.6]} 66...
Kd6 {[%clk 0:00:15.7]} 67. Kd4 {[%clk 0:00:19.6]} 1-0